bitfinex/quotes_SOLUSD_20251124
["timestamp","ask_amount","ask_price","bid_price","bid_amount"]
[1764010520893,0.7,137.52,137.48,3.95]
[1764010521098,13.50006887,137.52,137.49,25.45639682]
[1764010521612,0.7,137.51,137.49,7.27325623]
[1764010521908,12.80006887,137.52,137.49,7.27325623]
[1764010522096,12.80006887,137.51,137.49,7.27325623]
[1764010522984,0.7,137.5,137.49,7.27325623]
[1764010523210,0.7,137.5,137.47,7.27431439]
[1764010523211,13.50006887,137.5,137.47,7.27431439]
[1764010523416,12.80006887,137.49,137.47,7.27431439]
[1764010523583,12.80006887,137.48,137.47,7.27431439]
[1764010524393,13.50006887,137.49,137.47,7.27431439]
[1764010524991,12.80006887,137.49,137.46,7.27463309]
[1764010525203,0.7,137.48,137.45,25.46327014]
[1764010525404,13.50006887,137.49,137.45,26.15327014]
[1764010527297,0.7,137.49,137.46,0.69]
[1764010527501,13.50006887,137.49,137.45,26.15327014]
[1764010528994,0.7,137.49,137.45,26.15327014]
[1764010530000,12.80006887,137.48,137.45,25.46327014]
[1764010530514,13.50006887,137.47,137.45,7.27537286]
[1764010531219,0.7,137.46,137.44,7.27590221]
[1764010532507,12.80006887,137.47,137.44,7.27590221]
[1764010532706,0.7,137.47,137.44,7.27590221]
[1764010532907,12.80006887,137.47,137.44,26.15565773]
[1764010533109,13.50006887,137.47,137.44,25.46565773]
[1764010534219,0.7,137.46,137.44,25.46565773]
[1764010535423,13.50006887,137.46,137.44,7.27590221]
[1764010536694,0.7,137.45,137.44,7.27590221]
[1764010537117,12.80006887,137.46,137.44,7.27590221]
[1764010537316,12.80006887,137.46,137.42,18.19164468]
[1764010537317,12.80006887,137.46,137.43,7.27619012]
[1764010537523,13.50006887,137.45,137.43,7.27619012]
[1764010537716,0.7,137.45,137.43,7.27619012]
[1764010538730,13.50006887,137.46,137.43,7.27619012]
[1764010540225,0.7,137.46,137.42,25.46860582]
[1764010540425,0.7,137.46,137.42,26.15860582]
[1764010540821,12.80006887,137.44,137.42,7.27696114]
[1764010541129,12.80006887,137.43,137.38,7.96907992]
[1764010541318,12.80006887,137.42,137.38,7.96907992]
[1764010541515,12.80006887,137.43,137.38,26.16677973]
[1764010542012,13.50006887,137.43,137.39,0.69]
[1764010542209,0.7,137.42,137.4,7.27802037]
[1764010542405,13.50006887,137.42,137.4,7.27802037]
[1764010542624,0.7,137.45,137.41,16.73006887]
[1764010542807,0.7,137.44,137.41,3.24]
[1764010543032,13.50006887,137.44,137.41,3.24]
[1764010543533,0.7,137.44,137.41,3.24]
[1764010543839,12.80006887,137.46,137.41,16.04006887]
[1764010544130,0.7,137.46,137.42,0.69]
[1764010544506,0.7,137.46,137.43,7.27643163]
[1764010545036,13.50006887,137.46,137.43,7.27643163]
[1764010545216,12.80006887,137.44,137.39,0.69]
[1764010545416,12.80006887,137.42,137.4,7.27802037]
[1764010545828,13.50006887,137.41,137.37,0.69]
[1764010546037,12.80006887,137.41,137.38,7.27885867]
[1764010546244,12.80006887,137.42,137.38,7.96885867]
[1764010546616,13.50006887,137.42,137.38,26.16655848]
[1764010547026,12.80006887,137.41,137.38,26.16655848]
[1764010547521,13.47006887,137.44,137.39,0.72]
[1764010548230,0.67,137.43,137.39,0.72]
[1764010548538,0.67,137.43,137.4,7.27802037]
[1764010548539,13.47006887,137.43,137.4,7.27802037]
[1764010548925,12.80006887,137.42,137.4,7.27802037]
[1764010549123,13.47006887,137.42,137.4,7.27802037]
[1764010549325,13.47006887,137.43,137.4,7.27802037]
[1764010550156,12.80006887,137.41,137.39,7.27831781]
[1764010550318,12.80006887,137.42,137.39,7.27831781]
[1764010550519,0.67,137.41,137.39,7.27831781]
[1764010550714,8.02755079,137.41,137.36,16.308864]
[1764010550919,0.67,137.41,137.36,17.028864]
[1764010551137,7.35755079,137.39,137.36,0.72]
[1764010552030,7.35755079,137.39,137.37,7.27935253]
[1764010552416,8.02755079,137.38,137.35,7.28049086]
[1764010552732,7.35755079,137.38,137.35,8.00049086]
[1764010552917,8.01755079,137.39,137.35,8.00049086]
[1764010553131,8.01755079,137.42,137.36,16.88749571]
[1764010553331,8.01755079,137.42,137.37,3.24]
[1764010553532,8.01755079,137.42,137.37,3.96]
[1764010553721,7.35755079,137.41,137.38,0.72]
[1764010554027,7.35755079,137.43,137.39,25.47492539]
[1764010554240,8.01755079,137.45,137.4,3.24]
[1764010554437,7.35755079,137.44,137.4,3.96]
[1764010554829,8.01755079,137.44,137.4,3.96]
[1764010555648,8.01755079,137.44,137.4,3.24]
[1764010555854,8.01755079,137.44,137.42,7.27696114]
[1764010556222,7.35755079,137.44,137.42,7.27696114]
[1764010556949,7.35755079,137.45,137.42,6.77796114]
[1764010557253,7.35755079,137.44,137.42,6.77796114]
[1764010557836,8.01755079,137.44,137.42,6.77796114]
[1764010559054,7.35755079,137.44,137.42,6.77796114]
[1764010559235,8.01755079,137.44,137.41,7.27730462]
[1764010560461,8.01755079,137.44,137.41,25.47103142]
[1764010560646,3.74891228,137.45,137.41,26.19103142]
[1764010560961,3.08891228,137.44,137.41,26.19103142]
[1764010561550,3.74891228,137.44,137.41,25.47103142]
[1764010561866,3.08891228,137.44,137.41,7.27730462]
[1764010562039,3.74891228,137.44,137.41,7.27730462]
[1764010563940,3.74891228,137.44,137.41,25.47103142]
[1764010564145,0.66,137.43,137.41,7.27730462]
[1764010564559,3.74891228,137.44,137.41,7.27730462]
[1764010565261,3.08891228,137.44,137.41,7.99730462]
[1764010565571,3.08891228,137.43,137.41,7.27730462]
[1764010565741,0.66,137.43,137.41,7.27730462]
[1764010566564,10.36488908,137.44,137.41,7.27730462]
[1764010566752,0.66,137.42,137.4,7.27778384]
[1764010567152,3.08891228,137.41,137.39,7.27833576]
[1764010567341,3.08891228,137.4,137.37,7.27960981]
[1764010567861,3.74891228,137.4,137.37,7.99960981]
[1764010568065,3.08891228,137.4,137.37,7.99960981]
[1764010568241,3.08891228,137.4,137.37,26.19863434]
[1764010569776,3.74891228,137.41,137.37,26.19863434]
[1764010569956,3.08891228,137.4,137.37,26.19863434]
[1764010570268,3.08891228,137.38,137.36,7.2797411]
[1764010570478,0.66,137.37,137.35,25.48149811]
[1764010570777,0.66,137.37,137.35,26.20149811]
[1764010570778,3.08891228,137.37,137.35,26.20149811]
[1764010571869,3.08891228,137.38,137.35,26.20149811]
[1764010573249,3.08891228,137.36,137.34,0.2]
[1764010573470,3.08891228,137.35,137.34,0.2]
[1764010573773,3.08891228,137.36,137.34,7.48119994]
[1764010574158,3.74891228,137.36,137.34,7.48119994]
[1764010574355,3.08891228,137.35,137.34,7.48119994]
[1764010574949,3.08891228,137.35,137.34,0.2]
[1764010575155,3.74891228,137.35,137.34,0.2]
[1764010576148,11.0295821,137.35,137.34,0.2]
[1764010576380,3.74891228,137.35,137.34,0.2]
[1764010576681,0.66,137.38,137.34,26.40419979]
[1764010576857,3.74891228,137.37,137.34,26.40419979]
[1764010578086,8.80994492,137.49,137.35,0.72]
[1764010578388,3.08891228,137.4,137.35,0.72]
[1764010578676,3.08891228,137.39,137.35,0.72]
[1764010578861,3.08891228,137.38,137.35,0.72]
[1764010579765,3.08891228,137.38,137.36,7.28013977]
[1764010581167,3.08891228,137.39,137.36,7.28013977]
[1764010581355,3.08891228,137.39,137.36,8.00013977]
[1764010581762,3.74891228,137.39,137.36,7.28013977]
[1764010582672,3.74891228,137.39,137.36,0.66]
[1764010583572,0.67,137.38,137.35,25.48151669]
[1764010583781,0.67,137.38,137.35,7.28066982]
[1764010583782,3.08891228,137.37,137.35,7.28066982]
[1764010584167,0.67,137.37,137.35,7.28066982]
[1764010584855,0.67,137.37,137.34,7.48099218]
[1764010584856,3.08891228,137.36,137.34,7.48099218]
[1764010585290,3.75891228,137.36,137.34,7.48099218]
[1764010586672,3.75891228,137.35,137.34,0.2]
[1764010587456,7.28017911,137.36,137.34,7.48119994]
[1764010587457,3.08891228,137.36,137.34,7.48119994]
[1764010587661,3.08891228,137.37,137.34,7.48119994]
[1764010587880,0.67,137.36,137.34,7.48119994]
[1764010588673,3.75891228,137.36,137.34,7.48119994]
[1764010589688,0.67,137.36,137.34,7.48119994]
[1764010589994,3.75891228,137.36,137.34,7.48119994]
[1764010590376,3.08891228,137.35,137.34,7.48119994]
[1764010590692,3.75891228,137.35,137.34,0.2]
[1764010593571,14.2795821,137.35,137.34,0.2]
[1764010593776,3.75891228,137.35,137.34,0.2]
[1764010595486,3.75891228,137.35,137.34,7.48119994]
[1764010595687,3.08891228,137.36,137.34,7.48119994]
[1764010595990,3.75891228,137.36,137.34,7.48119994]
[1764010596193,3.75891228,137.35,137.34,7.48119994]
[1764010596575,3.08891228,137.35,137.34,7.48119994]
[1764010596891,3.08891228,137.35,137.34,0.2]
[1764010597067,3.75891228,137.35,137.34,0.2]
[1764010597463,3.08891228,137.36,137.34,7.48119994]
[1764010597668,3.08891228,137.37,137.34,26.34419979]
[1764010599287,3.08891228,137.38,137.35,0.66]
[1764010599489,3.08891228,137.39,137.35,0.66]
[1764010599995,3.08891228,137.38,137.36,7.28013977]
[1764010600381,3.08891228,137.38,137.36,7.94013977]
[1764010600993,3.08891228,137.38,137.36,7.28013977]
[1764010601493,3.08891228,137.38,137.36,7.94013977]
[1764010601971,0.67,137.4,137.36,7.94013977]
[1764010602172,3.08891228,137.38,137.36,7.94013977]
[1764010604490,3.08891228,137.39,137.36,25.48048921]
[1764010604685,3.08891228,137.4,137.37,0.66]
[1764010606077,3.08891228,137.39,137.37,7.27944361]
[1764010606283,3.08891228,137.39,137.37,7.93944361]
[1764010606598,3.75891228,137.39,137.37,7.27944361]
[1764010606898,3.08891228,137.39,137.37,7.27944361]
[1764010607098,3.08891228,137.38,137.34,19.06210514]
[1764010607299,3.75891228,137.38,137.35,7.28066982]
[1764010607598,3.08891228,137.38,137.35,26.14234437]
[1764010608878,3.75891228,137.39,137.36,0.66]
[1764010609388,3.75891228,137.39,137.35,25.48234437]
[1764010609590,3.75891228,137.39,137.35,26.14234437]
[1764010610104,0.67,137.39,137.35,26.14234437]
[1764010610284,3.75891228,137.39,137.35,26.14234437]
[1764010610692,5.50043104,137.39,137.35,26.14234437]
[1764010611095,5.50043104,137.39,137.37,7.27960981]
[1764010611299,7.27771772,137.41,137.37,7.27960981]
[1764010611300,4.83043104,137.4,137.37,7.27960981]
[1764010611472,5.52043104,137.4,137.37,7.27960981]
[1764010611899,5.52043104,137.4,137.37,7.93960981]
[1764010612390,5.52043104,137.4,137.37,26.13863434]
[1764010613412,5.52043104,137.4,137.37,25.47863434]
[1764010614984,4.83043104,137.38,137.36,7.27989613]
[1764010615407,5.55043104,137.38,137.35,25.48149601]
[1764010615710,0.72,137.37,137.35,25.48149601]
[1764010616287,5.55043104,137.37,137.35,7.28066982]
[1764010620404,5.55043104,137.36,137.34,7.48103122]
[1764010620588,4.83043104,137.35,137.34,0.2]
[1764010620785,5.55043104,137.35,137.34,0.2]
[1764010621920,4.83043104,137.36,137.34,7.48119994]
[1764010622430,8.07043104,137.37,137.34,7.48119994]
[1764010622746,8.07043104,137.37,137.34,8.20119994]
[1764010623011,8.79043104,137.37,137.34,8.20119994]
[1764010623691,8.79043104,137.37,137.34,26.40419979]
[1764010624012,8.79043104,137.37,137.34,25.68419979]
[1764010624184,4.83043104,137.36,137.34,25.68419979]
[1764010624384,5.55043104,137.36,137.34,7.48119994]
[1764010626081,4.83043104,137.35,137.34,0.2]
[1764010626281,5.55043104,137.35,137.34,0.2]
[1764010627622,19.548864,137.37,137.34,7.48119994]
[1764010627827,0.72,137.35,137.34,7.48119994]
[1764010628128,5.55043104,137.35,137.34,0.2]
[1764010630295,0.72,137.35,137.34,0.2]
[1764010630525,5.55043104,137.35,137.34,0.2]
[1764010632018,7.28040471,137.36,137.34,8.20119994]
[1764010632019,4.83043104,137.36,137.34,8.20119994]
[1764010632220,4.83043104,137.36,137.34,26.40419979]
[1764010632798,4.83043104,137.36,137.34,25.68419979]
[1764010632993,4.83043104,137.36,137.34,0.2]
[1764010632994,12.11059638,137.36,137.34,0.2]
[1764010633199,8.79043104,137.35,137.34,0.2]
[1764010635319,3.96,137.35,137.34,0.2]
[1764010635515,8.79043104,137.35,137.34,0.2]
[1764010636842,3.96,137.35,137.34,0.2]
[1764010637032,8.79043104,137.35,137.34,0.2]
[1764010639235,4.83043104,137.35,137.34,7.48119994]
[1764010639613,3.96,137.36,137.34,7.48119994]
[1764010639812,4.83043104,137.35,137.34,7.48119994]
[1764010641718,5.55043104,137.35,137.34,0.2]
[1764010643612,3.94,137.36,137.34,7.48119777]
[1764010643806,4.83043104,137.35,137.34,7.48119777]
[1764010644009,17.008864,137.39,137.35,0.69]
[1764010644212,4.83043104,137.38,137.35,0.69]
[1764010644460,5.53043104,137.39,137.35,0.69]
[1764010644739,3.24,137.4,137.35,3.93]
[1764010644943,4.83043104,137.38,137.35,3.93]
[1764010645126,4.83043104,137.38,137.36,0.69]
[1764010645943,4.83043104,137.38,137.37,7.27960981]
[1764010646348,5.53043104,137.38,137.36,7.27994902]
[1764010646517,4.83043104,137.37,137.36,7.27994902]
[1764010647810,4.83043104,137.38,137.36,7.27994902]
[1764010650060,4.83043104,137.37,137.36,7.27994902]
[1764010650260,4.83043104,137.38,137.36,7.27994902]
[1764010650970,5.53043104,137.37,137.35,7.28050252]
[1764010651443,4.83043104,137.37,137.35,7.97050252]
[1764010652459,4.83043104,137.38,137.36,0.69]
[1764010652760,3.24,137.4,137.36,0.69]
[1764010652942,26.02556543,137.51,137.36,0.69]
[1764010652943,4.83043104,137.41,137.37,4.83043104]
[1764010653338,4.83043104,137.41,137.38,0.69]
[1764010653770,4.83043104,137.4,137.38,0.69]
[1764010654064,4.83043104,137.39,137.37,7.27960981]
[1764010654635,4.83043104,137.39,137.37,7.96960981]
[1764010654860,5.53043104,137.4,137.37,26.16863434]
[1764010655036,4.83043104,137.4,137.37,26.16863434]
[1764010655459,4.83043104,137.4,137.38,0.69]
[1764010655645,4.83043104,137.41,137.37,7.27960981]
[1764010655847,4.83043104,137.4,137.38,0.69]
[1764010656158,4.83043104,137.4,137.39,7.27855011]
[1764010656960,3.94,137.43,137.39,7.96855011]
[1764010657164,4.83043104,137.41,137.39,7.96855011]
[1764010657467,3.94,137.43,137.4,0.69]
[1764010657468,4.83043104,137.42,137.4,0.69]
[1764010657962,4.83043104,137.42,137.41,7.27749072]
[1764010661158,4.83043104,137.43,137.41,7.27749072]
[1764010661365,4.83043104,137.43,137.4,0.69]
[1764010661366,4.83043104,137.42,137.4,7.96776859]
[1764010662066,4.83043104,137.42,137.39,18.88637528]
[1764010662365,4.83043104,137.42,137.4,0.69]
[1764010662757,5.53043104,137.42,137.39,18.19637528]
[1764010662959,5.53043104,137.42,137.39,18.88637528]
[1764010663565,4.83043104,137.42,137.39,18.88637528]
[1764010663746,4.83043104,137.42,137.4,0.69]
[1764010664065,4.83043104,137.42,137.41,7.27749072]
[1764010664663,0.7,137.43,137.41,7.27749072]
[1764010664974,4.83043104,137.42,137.41,7.27749072]
[1764010665353,4.83043104,137.42,137.4,7.27802037]
[1764010665554,0.7,137.43,137.4,26.16307131]
[1764010665866,8.07043104,137.44,137.41,0.69]
[1764010665867,3.24,137.44,137.41,0.69]
[1764010666170,8.77043104,137.44,137.41,0.69]
[1764010666867,4.83043104,137.43,137.41,0.69]
[1764010667567,4.83043104,137.43,137.4,25.47307131]
[1764010667792,5.49043104,137.43,137.4,26.17307131]
[1764010669461,4.83043104,137.43,137.4,26.17307131]
[1764010669673,5.49043104,137.44,137.4,26.17307131]
[1764010670844,5.49043104,137.44,137.42,7.27696114]
[1764010672677,0.66,137.44,137.42,7.27696114]
[1764010672887,3.7492149,137.44,137.42,7.27696114]
[1764010673077,3.24,137.45,137.42,7.94696114]
[1764010673282,16.08358422,137.49,137.42,7.94696114]
[1764010673459,3.24,137.47,137.42,26.13936399]
[1764010673782,3.0892149,137.46,137.42,26.13936399]
[1764010673975,3.7792149,137.46,137.42,26.13936399]
[1764010674179,0.69,137.45,137.42,26.13936399]
[1764010674492,0.69,137.45,137.42,7.94696114]
[1764010675367,3.7792149,137.45,137.42,7.94696114]
[1764010675574,3.7792149,137.45,137.42,7.94682623]
[1764010675863,3.7792149,137.44,137.41,3.91]
[1764010676277,3.7792149,137.44,137.42,7.27691627]
[1764010677584,3.0892149,137.44,137.42,7.27691627]
[1764010678075,3.7792149,137.44,137.42,7.27691627]
[1764010678276,3.7792149,137.43,137.42,7.27691627]
[1764010678476,3.7792149,137.43,137.41,7.27732127]
[1764010680372,0.69,137.43,137.41,7.27732127]
[1764010680691,3.7792149,137.45,137.41,26.14104807]
[1764010680876,3.0892149,137.45,137.41,26.14104807]
[1764010681072,3.7792149,137.44,137.41,7.27732127]
[1764010681675,3.7792149,137.44,137.41,7.94732127]
[1764010682285,0.69,137.44,137.41,7.94732127]
[1764010682583,3.7792149,137.46,137.42,0.67]
[1764010682889,3.0892149,137.45,137.42,0.67]
[1764010683081,3.7792149,137.45,137.41,26.14104807]
[1764010683284,0.69,137.44,137.41,26.14104807]
[1764010683978,3.7792149,137.44,137.41,26.14104807]
[1764010684158,3.7792149,137.44,137.41,18.1937268]
[1764010684363,3.7792149,137.44,137.41,18.8637268]
[1764010685472,0.69,137.43,137.41,18.1937268]
[1764010685672,0.69,137.44,137.41,18.8637268]
[1764010687211,0.69,137.44,137.41,26.14121752]
[1764010687731,0.69,137.44,137.41,7.27749072]
[1764010687732,3.7792149,137.44,137.41,7.27749072]
[1764010687881,3.0892149,137.45,137.41,7.27749072]
[1764010688084,106.26150539,137.6,137.45,16.308864]
[1764010688085,0.69,137.51,137.45,16.308864]
[1764010688289,0.69,137.51,137.47,3.0892149]
[1764010688490,22.788864,137.54,137.48,3.0892149]
[1764010688730,0.69,137.54,137.5,3.0892149]
[1764010689019,0.69,137.54,137.5,3.7592149]
[1764010689198,3.7792149,137.54,137.49,6.3292149]
[1764010689402,3.7792149,137.54,137.5,7.94272727]
[1764010689707,0.69,137.54,137.5,29.21376035]
[1764010689914,3.0892149,137.55,137.51,0.67]
[1764010690087,3.7792149,137.55,137.51,0.67]
[1764010690601,0.69,137.54,137.5,7.27272727]
[1764010690786,3.7792149,137.54,137.5,7.27272727]
[1764010691123,3.7792149,137.54,137.5,7.94272727]
[1764010691285,0.69,137.53,137.5,7.94272727]
[1764010691709,3.7792149,137.54,137.5,26.12454545]
[1764010691910,3.0892149,137.54,137.5,26.12454545]
[1764010692291,0.69,137.54,137.5,26.12454545]
[1764010693815,3.7792149,137.54,137.5,26.12454545]
[1764010695205,3.8792149,137.56,137.51,3.7592149]
[1764010695512,0.1,137.56,137.52,6.3292149]
[1764010695700,0.79,137.56,137.52,6.9992149]
[1764010695900,0.1,137.56,137.53,0.67]
[1764010696711,0.1,137.56,137.54,7.27061218]
[1764010697018,3.8792149,137.56,137.53,7.94095411]
[1764010697204,3.8792149,137.56,137.53,7.27095411]
[1764010697406,0.79,137.56,137.53,7.94095411]
[1764010697597,3.1892149,137.56,137.53,7.94095411]
[1764010698000,3.8792149,137.56,137.53,7.94095411]
[1764010699112,0.79,137.56,137.53,26.11880621]
[1764010699297,0.1,137.56,137.53,25.44880621]
[1764010699498,0.1,137.56,137.54,0.67]
[1764010700587,0.1,137.56,137.55,7.2700836]
[1764010702992,0.1,137.56,137.55,7.9600836]
[1764010703801,0.76,137.56,137.55,7.2700836]
[1764010704001,0.1,137.56,137.55,7.2700836]
[1764010704789,0.1,137.56,137.54,7.27061218]
[1764010705006,0.1,137.56,137.54,7.96061218]
[1764010705232,0.1,137.56,137.55,0.69]
[1764010706923,0.1,137.56,137.55,7.9600836]
[1764010707727,0.76,137.56,137.55,7.2700836]
[1764010708023,0.1,137.56,137.55,7.2700836]
[1764010710826,0.1,137.56,137.54,11.20040544]
[1764010711222,0.66,137.55,137.53,7.27113151]
[1764010712727,0.66,137.55,137.52,25.4508435]
[1764010712930,0.66,137.55,137.52,26.1408435]
[1764010713132,3.7492149,137.55,137.52,7.27166957]
[1764010713330,3.1892149,137.56,137.52,7.96166957]
[1764010713534,3.8492149,137.56,137.52,7.96166957]
[1764010713710,0.1,137.56,137.53,0.69]
[1764010713907,0.1,137.56,137.53,3.7792149]
[1764010714527,0.1,137.56,137.54,3.7792149]
[1764010714835,0.1,137.56,137.55,7.2700836]
[1764010717327,0.1,137.56,137.54,7.27061218]
[1764010717638,0.1,137.56,137.54,7.96061218]
[1764010718734,0.1,137.56,137.55,7.9600836]
[1764010719301,0.1,137.56,137.55,7.2700836]
[1764010721018,0.1,137.56,137.55,7.9600836]
[1764010722709,0.1,137.56,137.55,11.2000836]
[1764010724034,0.1,137.56,137.55,14.2892985]
[1764010725840,0.1,137.56,137.55,11.2000836]
[1764010726243,0.1,137.56,137.55,14.2892985]
[1764010727531,0.1,137.56,137.55,30.5981625]
[1764010729036,0.1,137.56,137.55,23.5789476]
[1764010729342,0.1,137.56,137.55,26.7989476]
[1764010731743,0.1,137.56,137.55,30.5681625]
[1764010731933,0.1,137.56,137.55,27.4789476]
[1764010734518,0.1,137.56,137.55,41.10346054]
[1764010734739,1e-08,137.56,137.55,41.10346054]
[1764010735356,1e-08,137.57,137.55,41.10346054]
[1764010735538,1e-08,137.57,137.56,64.29451294]
[1764010735835,1e-08,137.57,137.56,71.56406804]
[1764010741353,1e-08,137.57,137.56,16.74950002]
[1764010741546,1e-08,137.57,137.56,21.56406804]
[1764010742258,1e-08,137.57,137.56,12.08412312]
[1764010742440,1e-08,137.57,137.56,12.75412312]
[1764010748063,1e-08,137.57,137.56,7.9395551]
[1764010748251,1e-08,137.57,137.56,12.75412312]
[1764010749253,1e-08,137.57,137.56,12.08412312]
[1764010749569,0.67000001,137.57,137.56,7.2695551]
[1764010750452,0.67000001,137.57,137.56,12.08412312]
[1764010752748,1e-08,137.57,137.56,12.08412312]
[1764010752954,0.67000001,137.57,137.56,12.08412312]
[1764010754074,0.67000001,137.57,137.56,7.2695551]
[1764010757150,0.67000001,137.57,137.56,12.08412312]
[1764010757667,1e-08,137.57,137.56,7.2695551]
[1764010758054,0.67000001,137.57,137.56,7.2695551]
[1764010764362,1e-08,137.57,137.56,12.76412312]
[1764010764676,1e-08,137.57,137.56,7.2695551]
[1764010765174,0.71000001,137.57,137.56,7.2695551]
[1764010770768,103.31000001,137.57,137.56,7.2695551]
[1764010775172,103.31000001,137.57,137.53,25.4487065]
[1764010775173,5.52456803,137.57,137.53,25.4487065]
[1764010775374,0.71,137.56,137.53,25.4487065]
[1764010776084,0.71,137.56,137.53,7.27114084]
[1764010776287,0.71,137.56,137.53,34.16356096]
[1764010776586,0.71,137.56,137.53,50.47242496]
[1764010778070,0.71,137.56,137.55,7.2700836]
[1764010779694,103.31,137.56,137.55,7.2700836]
[1764010781669,102.6,137.56,137.55,7.2700836]
[1764010782399,102.6,137.56,137.55,12.76465162]
[1764010787276,102.6,137.56,137.55,12.08465162]
[1764010787786,102.6,137.56,137.55,12.77465162]
[1764010788879,102.6,137.56,137.55,12.08465162]
[1764010789591,102.6,137.56,137.55,12.77465162]
[1764010793899,1e-08,137.57,137.55,30.94986063]
[1764010794115,1e-08,137.57,137.56,8.03456802]
[1764010794799,1e-08,137.57,137.56,6.30151143]
[1764010795296,1e-08,137.57,137.56,3.22]
[1764010795597,1e-08,137.57,137.56,6.30151143]
[1764010795977,0.81,137.58,137.56,6.30151143]
[1764010796179,0.81,137.58,137.57,7.26902667]
[1764010800301,3.89151143,137.58,137.56,3.22]
[1764010800505,62.01656711,137.57,137.54,21.84916791]
[1764010800719,65.23656711,137.56,137.54,21.84916791]
[1764010800903,65.95656711,137.56,137.53,7.27110632]
[1764010801082,0.72,137.55,137.52,7.27166957]
[1764010801412,3.80151143,137.55,137.52,7.27166957]
[1764010802225,0.72,137.54,137.52,7.27166957]
[1764010802581,58.93505568,137.56,137.53,3.74151143]
[1764010802795,59.65505568,137.56,137.55,3.08151143]
[1764010802999,0.72,137.56,137.55,7.2700836]
[1764010803785,0.82,137.58,137.55,28.52680404]
[1764010804502,0.82,137.58,137.56,3.08151143]
[1764010805007,0.82,137.58,137.55,28.52680404]
[1764010805710,0.82,137.58,137.55,31.74680404]
[1764010807004,0.82,137.58,137.56,3.08151143]
[1764010807306,0.82,137.58,137.55,31.74680404]
[1764010807912,58.93505568,137.57,137.55,10.4900836]
[1764010808201,58.93505568,137.57,137.54,7.27042731]
[1764010808500,0.72,137.56,137.54,7.27042731]
[1764010810687,58.93505568,137.57,137.54,28.5284692]
[1764010810900,59.65505568,137.57,137.55,3.08151143]
[1764010811088,0.72,137.56,137.55,3.08151143]
[1764010811509,0.72,137.56,137.54,28.5284692]
[1764010813295,0.72,137.56,137.54,10.35193874]
[1764010814891,0.72,137.56,137.54,7.27042731]
[1764010815992,0.72,137.56,137.51,0.66]
[1764010815993,3.80151143,137.56,137.51,3.08151143]
[1764010816192,3.80151143,137.56,137.52,3.08151143]
[1764010816193,58.93505568,137.55,137.52,3.08151143]
[1764010816403,59.65505568,137.55,137.53,3.08151143]
[1764010816603,0.72,137.54,137.53,3.08151143]
[1764010817094,0.72,137.54,137.51,32.41374632]
[1764010818912,58.93505568,137.53,137.51,3.22]
[1764010819288,0.72,137.52,137.51,3.22]
[1764010819485,0.72,137.52,137.5,7.2726669]
[1764010820106,3.80151143,137.52,137.49,10.49324056]
[1764010820506,0.72,137.51,137.49,10.49324056]
[1764010821000,58.93505568,137.5,137.48,7.27359414]
[1764010821400,0.72,137.49,137.48,7.27359414]
[1764010821601,59.65505568,137.5,137.48,7.27359414]
[1764010825510,59.60505568,137.5,137.48,7.27359414]
[1764010827699,0.67,137.49,137.48,7.27359414]
[1764010828003,0.67,137.49,137.46,16.968864]
[1764010828004,58.93505568,137.48,137.46,23.5835048]
[1764010828510,0.67,137.47,137.46,23.5835048]
[1764010829222,59.60505568,137.48,137.46,23.5835048]
[1764010831598,58.93505568,137.48,137.46,24.2435048]
[1764010831816,58.93505568,137.48,137.47,3.74151143]
[1764010832404,0.67,137.54,137.49,23.58212023]
[1764010832627,0.67,137.54,137.5,6.30151143]
[1764010832833,0.67,137.54,137.5,3.88]
[1764010833131,3.08151143,137.53,137.5,3.22]
[1764010833333,3.75151143,137.54,137.5,3.22]
[1764010833506,0.67,137.53,137.5,3.22]
[1764010834606,0.67,137.53,137.51,7.27219838]
[1764010835800,6.30151143,137.54,137.51,25.45269434]
[1764010835801,0.67,137.54,137.51,25.45269434]
[1764010838805,3.75151143,137.54,137.51,25.45269434]
[1764010839518,0.67,137.54,137.51,25.45269434]
[1764010840104,0.67,137.53,137.51,25.45269434]
[1764010840935,3.22,137.55,137.52,0.66]
[1764010841136,58.93505568,137.54,137.52,0.66]
[1764010841632,59.60505568,137.54,137.51,25.45269434]